fUST/lending_fUST_20240828
["ID","MTS","AMOUNT","RATE_DAILY","PERIOD"]
[336445454,1724830245239,-500.0,0.00012054,2]
[336445455,1724830245250,-500.0,0.00012054,2]
[336445456,1724830245260,-500.0,0.00012054,2]
[336445457,1724830245269,-500.0,0.00012054,2]
[336445458,1724830245279,-500.0,0.00012054,2]
[336445459,1724830245287,-500.0,0.00012054,2]
[336445460,1724830245297,-586.89,0.00012054,2]
[336445461,1724830245307,-500.0,0.00012054,2]
[336445462,1724830245316,-500.0,0.00012054,2]
[336445463,1724830245326,-500.0,0.00012054,2]
[336445464,1724830245336,-500.0,0.00012054,2]
[336445465,1724830245347,-1073.76,0.00012054,2]
[336445466,1724830245356,-500.0,0.00012054,2]
[336445467,1724830245366,-500.0,0.00012054,2]
[336445468,1724830245376,-500.0,0.00012054,2]
[336445469,1724830245385,-500.0,0.00012054,2]
[336445470,1724830245395,-500.0,0.00012054,2]
[336445471,1724830245404,-500.0,0.00012054,2]
[336445472,1724830245413,-500.0,0.00012054,2]
[336445473,1724830245422,-500.0,0.00012054,2]
[336445474,1724830245432,-500.0,0.00012054,2]
[336445475,1724830245442,-500.0,0.00012054,2]
[336445476,1724830245451,-500.0,0.00012054,2]
[336445477,1724830245461,-500.0,0.00012054,2]
[336445478,1724830245471,-500.0,0.00012054,2]
[336445479,1724830245480,-500.0,0.00012054,2]
[336445480,1724830245489,-876.6,0.00012054,2]
[336445481,1724830245498,-500.0,0.00012054,2]
[336445482,1724830245509,-446.83881332,0.00012054,2]
[336445483,1724830245522,-500.0,0.00012054,2]
[336445484,1724830245531,-500.0,0.00012054,2]
[336445485,1724830245542,-500.0,0.00012054,2]
[336445486,1724830245554,-500.0,0.00012054,2]
[336445487,1724830245565,-500.0,0.00012054,2]
[336445488,1724830245577,-22012.3355288,0.0001212,2]
[336445490,1724830245589,-22012.3355288,0.0001212,2]
[336445492,1724830245599,-186.78082306,0.00012219,2]
[336445494,1724830245608,-236.96619364,0.00012219,2]
[336445496,1724830245617,-1132.01300133,0.00012219,2]
[336445498,1724830245628,-175.84774053,0.00012219,2]
[336445500,1724830245638,-665.79988618,0.00012219,2]
[336445501,1724830245647,-3906.8355966,0.00012219,2]
[336445503,1724830245657,-612.1324918,0.00012328,2]
[336445505,1724830245666,-500.0,0.00012328,2]
[336445507,1724830245675,-500.0,0.00012328,2]
[336445509,1724830245685,-500.0,0.00012328,2]
[336445511,1724830245694,-500.0,0.00012328,2]
[336445513,1724830245704,-359.47,0.00012328,2]
[336445515,1724830245714,-500.0,0.00012328,2]
[336445517,1724830245724,-500.0,0.00012328,2]
[336445519,1724830245733,-500.0,0.00012328,2]
[336445521,1724830245742,-647.65,0.00012328,2]
[336445523,1724830245751,-500.0,0.00012328,2]
[336445525,1724830245761,-500.0,0.00012328,2]
[336445527,1724830245770,-500.0,0.00012328,2]
[336445529,1724830245779,-537.98,0.00012328,2]
[336445531,1724830245788,-500.0,0.00012328,2]
[336445533,1724830245797,-500.0,0.00012328,2]
[336445535,1724830245806,-500.0,0.00012328,2]
[336445537,1724830245815,-500.0,0.00012328,2]
[336445539,1724830245826,-500.0,0.00012328,2]
[336445541,1724830245836,-716.76,0.00012328,2]
[336445543,1724830245847,-500.0,0.00012328,2]
[336445545,1724830245856,-500.0,0.00012328,2]
[336445547,1724830245866,-2761.92,0.00012328,2]
[336445549,1724830245876,-500.0,0.00012328,2]
[336445551,1724830245886,-500.0,0.00012328,2]
[336445554,1724830245896,-1062.53,0.00012328,2]
[336445556,1724830245906,-500.0,0.00012328,2]
[336445558,1724830245915,-432.77902595,0.00012328,2]
[336445560,1724830245925,-500.0,0.00012328,2]
[336445562,1724830245935,-500.0,0.00012328,2]
[336445564,1724830245946,-500.0,0.00012328,2]
[336445566,1724830245957,-500.0,0.00012328,2]
[336445568,1724830245968,-876.1,0.00012328,2]
[336445571,1724830245980,-500.0,0.00012328,2]
[336445573,1724830245992,-500.0,0.00012328,2]
[336445575,1724830246002,-500.0,0.00012328,2]
[336445578,1724830246012,-500.0,0.00012328,2]
[336445580,1724830246021,-500.0,0.00012328,2]
[336445582,1724830246031,-500.0,0.00012328,2]
[336445584,1724830246040,-500.0,0.00012328,2]
[336445587,1724830246051,-500.0,0.00012328,2]
[336445589,1724830246066,-500.0,0.00012328,2]
[336445591,1724830246075,-1073.76,0.00012328,2]
[336445593,1724830246087,-500.0,0.00012328,2]
[336445595,1724830246097,-500.0,0.00012328,2]
[336445597,1724830246108,-500.0,0.00012328,2]
[336445599,1724830246118,-500.0,0.00012328,2]
[336445602,1724830246128,-500.0,0.00012328,2]
[336445605,1724830246140,-500.0,0.00012328,2]
[336445606,1724830246149,-500.0,0.00012328,2]
[336445608,1724830246158,-500.0,0.00012328,2]
[336445611,1724830246167,-500.0,0.00012328,2]
[336445614,1724830246177,-500.0,0.00012328,2]
[336445617,1724830246186,-500.0,0.00012328,2]
[336445620,1724830246196,-521.63,0.00012328,2]
[336445623,1724830246205,-500.0,0.00012328,2]
[336445626,1724830246215,-500.0,0.00012328,2]
[336445629,1724830246225,-876.6,0.00012328,2]
[336445632,1724830246235,-500.0,0.00012328,2]
[336445636,1724830246246,-500.0,0.00012328,2]
[336445639,1724830246256,-500.0,0.00012328,2]
[336445641,1724830246266,-500.0,0.00012328,2]
[336445644,1724830246275,-500.0,0.00012328,2]
[336445647,1724830246285,-389.32,0.00012328,2]
[336445650,1724830246295,-500.0,0.00012421,2]
[336445654,1724830246305,-1000.0,0.00012421,2]
[336445657,1724830246314,-363.23059045,0.00012421,2]
[336445660,1724830246323,-757.83880799,0.00012421,2]
[336445663,1724830246333,-500.0,0.00012602,2]
[336445666,1724830246342,-471.64652786,0.00012602,2]
[336445668,1724830246351,-391.45,0.00012602,2]
[336445670,1724830246361,-500.0,0.00012602,2]
[336445672,1724830246371,-500.0,0.00012602,2]
[336445674,1724830246380,-500.0,0.00012602,2]
[336445676,1724830246389,-371.08219005,0.00012602,2]
[336445678,1724830246399,-500.0,0.00012602,2]
[336445680,1724830246408,-500.0,0.00012602,2]
[336445682,1724830246417,-500.0,0.00012602,2]
[336445684,1724830246427,-500.0,0.00012602,2]
[336445686,1724830246436,-500.0,0.00012602,2]
[336445688,1724830246445,-324.03,0.00012602,2]
[336445690,1724830246455,-500.0,0.00012602,2]
[336445692,1724830246464,-500.0,0.00012602,2]
[336445694,1724830246473,-716.76,0.00012602,2]
[336445696,1724830246482,-500.0,0.00012602,2]
[336445698,1724830246492,-500.0,0.00012602,2]
[336445700,1724830246501,-2761.92,0.00012602,2]
[336445702,1724830246513,-500.0,0.00012602,2]
[336445704,1724830246523,-500.0,0.00012602,2]
[336445706,1724830246533,-1062.53,0.00012602,2]
[336445708,1724830246543,-500.0,0.00012602,2]
[336445710,1724830246553,-500.0,0.00012602,2]
[336445713,1724830246562,-500.0,0.00012602,2]
[336445715,1724830246572,-500.0,0.00012602,2]
[336445717,1724830246582,-500.0,0.00012602,2]
[336445719,1724830246593,-876.1,0.00012602,2]
[336445721,1724830246603,-500.0,0.00012602,2]
[336445723,1724830246613,-500.0,0.00012602,2]
[336445725,1724830246623,-500.0,0.00012602,2]
[336445727,1724830246632,-500.0,0.00012602,2]
[336445729,1724830246643,-500.0,0.00012602,2]
[336445731,1724830246652,-500.0,0.00012602,2]
[336445733,1724830246662,-634.70773225,0.00012602,2]
[336445735,1724830246673,-500.0,0.00012602,2]
[336445737,1724830246682,-1073.76,0.00012602,2]
[336445739,1724830246693,-294.02,0.00012602,2]
[336445741,1724830246702,-504.26473185,0.00012602,2]
[336445743,1724830246713,-500.0,0.00012602,2]
[336445745,1724830246723,-190.35,0.00012602,2]
[336445748,1724830246733,-540.00148259,0.00012602,2]
[336445749,1724830246742,-500.0,0.00012602,2]
[336445752,1724830246752,-500.0,0.00012602,2]
[336445754,1724830246762,-500.0,0.00012602,2]
[336445756,1724830246772,-267.42888694,0.00012602,2]
[336445758,1724830246783,-500.0,0.00012602,2]
[336445760,1724830246794,-228.2752073,0.00012602,2]
[336445762,1724830246805,-500.0,0.00012602,2]
[336445764,1724830246817,-500.0,0.00012602,2]
[336445766,1724830246828,-876.6,0.00012602,2]
[336445768,1724830246838,-450.42,0.00012602,2]
[336445771,1724830246849,-500.0,0.00012602,2]
[336445773,1724830246859,-500.0,0.00012602,2]
[336445774,1724830246868,-500.0,0.00012602,2]
[336445776,1724830246878,-500.0,0.00012602,2]
[336445779,1724830246888,-8852.09163784,0.00012629,2]
[336445781,1724830246900,-500.0,0.00012876,2]
[336445783,1724830246912,-500.0,0.00012876,2]
[336445785,1724830246922,-500.0,0.00012876,2]
[336445787,1724830246931,-500.0,0.00012876,2]
[336445789,1724830246941,-500.0,0.00012876,2]
[336445791,1724830246951,-447.90477535,0.00012876,2]
[336445793,1724830246961,-500.0,0.00012876,2]
[336445795,1724830246970,-500.0,0.00012876,2]
[336445797,1724830246980,-500.0,0.00012876,2]
[336445799,1724830246990,-500.0,0.00012876,2]
[336445801,1724830247000,-500.0,0.00012876,2]
[336445803,1724830247010,-716.76,0.00012876,2]
[336445805,1724830247019,-500.0,0.00012876,2]
[336445807,1724830247030,-500.0,0.00012876,2]
[336445809,1724830247039,-2761.92,0.00012876,2]
[336445811,1724830247050,-500.0,0.00012876,2]
[336445813,1724830247063,-500.0,0.00012876,2]
[336445815,1724830247074,-1062.53,0.00012876,2]
[336445816,1724830247084,-295.02,0.00012876,2]
[336445818,1724830247094,-500.0,0.00012876,2]
[336445820,1724830247104,-500.0,0.00012876,2]
[336445822,1724830247113,-500.0,0.00012876,2]
[336445824,1724830247122,-500.0,0.00012876,2]
[336445826,1724830247134,-876.1,0.00012876,2]
[336445828,1724830247143,-500.0,0.00012876,2]
[336445831,1724830247153,-500.0,0.00012876,2]
[336445833,1724830247164,-500.0,0.00012876,2]
[336445835,1724830247174,-500.0,0.00012876,2]
[336445837,1724830247182,-500.0,0.00012876,2]
[336445839,1724830247192,-500.0,0.00012876,2]
[336445840,1724830247203,-500.0,0.00012876,2]
[336445842,1724830247212,-1073.76,0.00012876,2]
[336445845,1724830247223,-500.0,0.00012876,2]
[336445847,1724830247232,-500.0,0.00012876,2]
[336445849,1724830247242,-500.0,0.00012876,2]
[336445851,1724830247252,-500.0,0.00012876,2]
[336445853,1724830247262,-500.0,0.00012876,2]
[336445855,1724830247272,-500.0,0.00012876,2]
[336445857,1724830247281,-876.6,0.00012876,2]
[336445859,1724830247291,-500.0,0.00012876,2]
[336445861,1724830247301,-500.0,0.00012876,2]
[336445863,1724830247310,-155.40099831,0.00012876,2]
[336445865,1724830247320,-500.0,0.00012876,2]
[336445867,1724830247330,-8076.93499864,0.000129,2]
[336445869,1724830247339,-1931.66232604,0.000129,2]
[336445870,1724830247348,-493.77204427,0.0001295,2]
[336445872,1724830247358,-535.33512,0.00012989,2]
[336445874,1724830247367,-422.69720013,0.00012999,2]
[336445876,1724830247377,-863.27824545,0.00013,2]
[336445878,1724830247386,-150.112233,0.00013,2]
[336445880,1724830247396,-370.81,0.0001315,2]
[336445882,1724830247405,-500.0,0.0001315,2]
[336445884,1724830247415,-500.0,0.0001315,2]
[336445887,1724830247425,-500.0,0.0001315,2]
[336445888,1724830247434,-500.0,0.0001315,2]
[336445890,1724830247443,-500.0,0.0001315,2]
[336445892,1724830247453,-234.23,0.0001315,2]
[336445894,1724830247462,-500.0,0.0001315,2]
[336445896,1724830247472,-500.0,0.0001315,2]
[336445898,1724830247481,-500.0,0.0001315,2]
[336445900,1724830247490,-716.76,0.0001315,2]
[336445902,1724830247499,-500.0,0.0001315,2]
[336445904,1724830247508,-500.0,0.0001315,2]
[336445906,1724830247518,-2761.92,0.0001315,2]
[336445908,1724830247527,-647.35,0.0001315,2]
[336445910,1724830247537,-500.0,0.0001315,2]
[336445912,1724830247547,-1062.53,0.0001315,2]
[336445914,1724830247557,-500.0,0.0001315,2]
[336445916,1724830247566,-500.0,0.0001315,2]
[336445917,1724830247576,-500.0,0.0001315,2]
[336445919,1724830247586,-500.0,0.0001315,2]
[336445922,1724830247596,-876.1,0.0001315,2]
[336445923,1724830247605,-500.0,0.0001315,2]
[336445926,1724830247615,-500.0,0.0001315,2]
[336445928,1724830247625,-500.0,0.0001315,2]
[336445930,1724830247635,-500.0,0.0001315,2]
[336445932,1724830247644,-500.0,0.0001315,2]
[336445934,1724830247654,-500.0,0.0001315,2]
[336445935,1724830247665,-500.0,0.0001315,2]
[336445937,1724830247674,-1073.76,0.0001315,2]
[336445939,1724830247684,-500.0,0.0001315,2]
[336445942,1724830247696,-274.12,0.0001315,2]
[336445944,1724830247706,-500.0,0.0001315,2]
[336445946,1724830247715,-500.0,0.0001315,2]
[336445948,1724830247725,-500.0,0.0001315,2]
[336445949,1724830247734,-503.97129536,0.0001315,2]
[336445952,1724830247747,-876.6,0.0001315,2]
[336445953,1724830247757,-500.0,0.0001315,2]
[336445954,1724830247767,-500.0,0.0001315,2]
[336445955,1724830247779,-634.31519294,0.0001315,2]
[336445957,1724830247790,-600.0,0.00013193,2]
[336445959,1724830247801,-600.0,0.00013256,2]
[336445961,1724830247811,-600.0,0.00013287,2]
[336445963,1724830247823,-600.0,0.00013288,2]
[336445967,1724830247943,-500.0,0.00013319,2]
[336445969,1724830247954,-175.39,0.00013424,2]
[336445971,1724830247963,-500.0,0.00013424,2]
[336445973,1724830247973,-500.0,0.00013424,2]
[336445975,1724830247983,-500.0,0.00013424,2]
[336445977,1724830247993,-500.0,0.00013424,2]
[336445979,1724830248004,-500.0,0.00013424,2]
[336445981,1724830248014,-500.0,0.00013424,2]
[336445983,1724830248024,-500.0,0.00013424,2]
[336445985,1724830248034,-716.76,0.00013424,2]
[336445988,1724830248043,-500.0,0.00013424,2]
[336445990,1724830248053,-500.0,0.00013424,2]
[336445992,1724830248068,-2761.92,0.00013424,2]
[336445994,1724830248080,-500.0,0.00013424,2]
[336445996,1724830248090,-1062.53,0.00013424,2]
[336445998,1724830248100,-500.0,0.00013424,2]
[336446000,1724830248111,-500.0,0.00013424,2]
[336446002,1724830248120,-358.33,0.00013424,2]
[336446004,1724830248132,-524.22,0.00013424,2]
[336446006,1724830248145,-876.1,0.00013424,2]
[336446008,1724830248155,-500.0,0.00013424,2]
[336446010,1724830248165,-174.75,0.00013424,2]
[336446012,1724830248174,-500.0,0.00013424,2]
[336446014,1724830248184,-500.0,0.00013424,2]
[336446016,1724830248194,-500.0,0.00013424,2]
[336446018,1724830248204,-500.0,0.00013424,2]
[336446020,1724830248213,-217.75,0.00013424,2]
[336446022,1724830248223,-1073.76,0.00013424,2]
[336446024,1724830248233,-500.0,0.00013424,2]
[336446026,1724830248243,-475.10908534,0.00013424,2]
[336446028,1724830248255,-500.0,0.00013424,2]
[336446030,1724830248265,-500.0,0.00013424,2]
[336446032,1724830248275,-876.6,0.00013424,2]
[336446034,1724830248285,-500.0,0.00013424,2]
[336446036,1724830248296,-554.37,0.00013424,2]
[336446038,1724830248306,-751.97281741,0.00013515,2]
[336446040,1724830248318,-166.89815385,0.00013697,2]
[336446043,1724830248330,-475.05411845,0.00013698,2]
[336446045,1724830248341,-500.0,0.00013698,2]
[336446047,1724830248351,-681.31731393,0.00013698,2]
[336446049,1724830248361,-195.5494493,0.00013698,2]
[336446051,1724830248370,-681.31731393,0.00013698,2]
[336446052,1724830248380,-500.0,0.00013698,2]
[336446053,1724830248390,-681.31731393,0.00013698,2]
[336446054,1724830248399,-681.31731393,0.00013698,2]
[336446055,1724830248409,-264.54675196,0.00013698,2]
[336446056,1724830248419,-681.31731393,0.00013698,2]
[336446057,1724830248428,-681.31731393,0.00013698,2]
[336446058,1724830248437,-681.31731393,0.00013698,2]
[336446059,1724830248446,-681.31731393,0.00013698,2]
[336446060,1724830248456,-681.31731393,0.00013698,2]
[336446061,1724830248465,-681.31731393,0.00013698,2]
[336446062,1724830248474,-681.31731393,0.00013698,2]
[336446063,1724830248483,-681.31731393,0.00013698,2]
[336446064,1724830248493,-681.31731393,0.00013698,2]
[336446065,1724830248504,-681.31731393,0.00013698,2]
[336446066,1724830248513,-300.0,0.00013698,2]
[336446067,1724830248524,-691.79911876,0.00013698,2]
[336446068,1724830248534,-691.79911876,0.00013698,2]
[336446069,1724830248543,-691.79911876,0.00013698,2]
[336446071,1724830248553,-691.79911876,0.00013698,2]
[336446073,1724830248562,-691.79911876,0.00013698,2]
[336446075,1724830248573,-691.79911876,0.00013698,2]
[336446077,1724830248582,-691.79911876,0.00013698,2]
[336446079,1724830248593,-691.79911876,0.00013698,2]
[336446082,1724830248602,-691.79911876,0.00013698,2]
[336446084,1724830248612,-750.56485035,0.00013698,2]
[336446085,1724830248621,-750.56485035,0.00013698,2]
[336446087,1724830248631,-750.56485035,0.00013698,2]
[336446089,1724830248640,-500.0,0.00013698,2]
[336446092,1724830248650,-500.0,0.00013698,2]
[336446094,1724830248660,-500.0,0.00013698,2]
[336446096,1724830248670,-500.0,0.00013698,2]
[336446098,1724830248680,-500.0,0.00013698,2]
[336446100,1724830248690,-500.0,0.00013698,2]
[336446101,1724830248700,-307.99,0.00013698,2]
[336446103,1724830248709,-716.76,0.00013698,2]
[336446105,1724830248720,-500.0,0.00013698,2]
[336446107,1724830248730,-500.0,0.00013698,2]
[336446109,1724830248739,-2761.92,0.00013698,2]
[336446111,1724830248749,-500.0,0.00013698,2]
[336446113,1724830248759,-1062.53,0.00013698,2]
[336446115,1724830248770,-500.0,0.00013698,2]
[336446116,1724830248779,-394.77,0.00013698,2]
[336446118,1724830248789,-876.1,0.00013698,2]
[336446121,1724830248799,-500.0,0.00013698,2]
[336446123,1724830248810,-500.0,0.00013698,2]
[336446125,1724830248820,-500.0,0.00013698,2]
[336446127,1724830248831,-500.0,0.00013698,2]
[336446129,1724830248841,-463.49740919,0.00013698,2]
[336446131,1724830248851,-1073.76,0.00013698,2]
[336446133,1724830248860,-500.0,0.00013698,2]
[336446134,1724830248870,-214.2,0.00013698,2]
[336446136,1724830248880,-500.0,0.00013698,2]
[336446138,1724830248890,-876.6,0.00013698,2]
[336446140,1724830248900,-500.0,0.00013698,2]
[336446142,1724830248910,-3000.0,0.00013699,2]
[336446143,1724830248919,-286.720188,0.00013699,2]
[336446144,1724830248930,-500.0,0.00013699,2]
[336446145,1724830248939,-500.0,0.00013699,2]
[336446146,1724830248950,-500.0,0.00013699,2]
[336446147,1724830248959,-500.0,0.00013699,2]
[336446148,1724830248969,-363.76989466,0.00013699,2]
[336446149,1724830248979,-150.112233,0.000137,2]
[336446150,1724830248990,-9649.55825762,0.00013971,2]
[336446151,1724830248999,-500.0,0.00013972,2]
[336446152,1724830249010,-500.0,0.00013972,2]
[336446153,1724830249020,-500.0,0.00013972,2]
[336446154,1724830249029,-500.0,0.00013972,2]
[336446155,1724830249038,-716.76,0.00013972,2]
[336446156,1724830249050,-500.0,0.00013972,2]
[336446157,1724830249064,-2761.92,0.00013972,2]
[336446158,1724830249073,-627.47,0.00013972,2]
[336446159,1724830249084,-1062.53,0.00013972,2]
[336446161,1724830249094,-243.83,0.00013972,2]
[336446162,1724830249104,-876.1,0.00013972,2]
[336446164,1724830249113,-500.0,0.00013972,2]
[336446167,1724830249123,-563.57,0.00013972,2]
[336446169,1724830249134,-500.0,0.00013972,2]
[336446171,1724830249144,-1073.76,0.00013972,2]
[336446172,1724830249153,-500.0,0.00013972,2]
[336446174,1724830249164,-500.0,0.00013972,2]
[336446177,1724830249174,-876.6,0.00013972,2]
[336446179,1724830249184,-500.0,0.00013972,2]
[336446181,1724830249193,-4349.73232465,0.00013998,2]
[336446183,1724830249203,-168.804,0.00014,2]
[336446185,1724830249213,-236.11350432,0.00014234,2]
[336446187,1724830249222,-500.0,0.00014246,2]
[336446189,1724830249232,-500.0,0.00014246,2]
[336446191,1724830249242,-716.76,0.00014246,2]
[336446193,1724830249253,-500.0,0.00014246,2]
[336446195,1724830249264,-2761.92,0.00014246,2]
[336446197,1724830249275,-1062.53,0.00014246,2]
[336446199,1724830249284,-876.1,0.00014246,2]
[336446201,1724830249294,-500.0,0.00014246,2]
[336446203,1724830249305,-1073.76,0.00014246,2]
[336446205,1724830249314,-500.0,0.00014246,2]
[336446207,1724830249323,-500.0,0.00014246,2]
[336446209,1724830249334,-876.6,0.00014246,2]
[336446212,1724830249344,-500.0,0.00014246,2]
[336446214,1724830249353,-615.416666,0.00014247,2]
[336446216,1724830249363,-158.333334,0.00014247,2]
[336446218,1724830249373,-150.112233,0.000144,2]
[336446220,1724830249382,-500.0,0.0001452,2]
[336446222,1724830249392,-500.0,0.0001452,2]
[336446224,1724830249401,-716.76,0.0001452,2]
[336446226,1724830249411,-500.0,0.0001452,2]
[336446228,1724830249421,-2761.92,0.0001452,2]
[336446230,1724830249431,-1062.53,0.0001452,2]
[336446231,1724830249440,-876.1,0.0001452,2]
[336446233,1724830249449,-1073.76,0.0001452,2]
[336446235,1724830249459,-500.0,0.0001452,2]
[336446237,1724830249468,-500.0,0.0001452,2]
[336446239,1724830249478,-876.6,0.0001452,2]
[336446241,1724830249488,-500.0,0.0001452,2]
[336446243,1724830249498,-500.0,0.00014794,2]
[336446246,1724830249507,-500.0,0.00014794,2]
[336446248,1724830249516,-716.76,0.00014794,2]
[336446250,1724830249526,-500.0,0.00014794,2]
[336446252,1724830249536,-2761.92,0.00014794,2]
[336446254,1724830249545,-1062.53,0.00014794,2]
[336446256,1724830249555,-876.1,0.00014794,2]
[336446257,1724830249564,-1073.76,0.00014794,2]
[336446259,1724830249575,-500.0,0.00014794,2]
[336446261,1724830249584,-500.0,0.00014794,2]
[336446263,1724830249594,-810.69693377,0.00014794,2]
[336446282,1724830249755,-438.23094847,0.00011899,2]
[336446284,1724830249769,-103.15905153,0.00011899,2]
[336446286,1724830249779,-65.90306623,0.00014794,2]
[336446288,1724830249789,-318.92125155,0.00014794,2]
[336446305,1724830249963,-500.0,0.00010958,2]
[336446307,1724830249972,-500.0,0.00011232,2]
[336446309,1724830249982,-541.39,0.00011899,2]
[336446312,1724830249993,-541.39,0.00011899,2]
[336446314,1724830250002,-541.39,0.00011899,2]
[336446316,1724830250012,-541.39,0.00011899,2]
[336446318,1724830250023,-333.66008221,0.00011899,2]
[336446320,1724830250034,-207.72991779,0.00011899,2]
[336446322,1724830250044,-541.39,0.00011899,2]
[336446324,1724830250054,-541.39,0.00011899,2]
[336446326,1724830250071,-181.07874845,0.00014794,2]
[336446329,1724830250082,-20806.3048966,0.00015,2]
[336446331,1724830250092,-9980.00000024,0.00015,5]
[336446333,1724830250103,-500.0,0.00015068,2]
[336446335,1724830250112,-500.0,0.00015068,2]
[336446337,1724830250122,-716.76,0.00015068,2]
[336446339,1724830250131,-500.0,0.00015068,2]
[336446341,1724830250143,-2761.92,0.00015068,2]
[336446343,1724830250156,-1062.53,0.00015068,2]
[336446345,1724830250167,-876.1,0.00015068,2]
[336446347,1724830250177,-1073.76,0.00015068,2]
[336446349,1724830250187,-500.0,0.00015068,2]
[336446351,1724830250197,-500.0,0.00015068,2]
[336446353,1724830250208,-876.6,0.00015068,2]
[336446355,1724830250218,-609.51,0.00015068,2]
[336446358,1724830250231,-1012.24206773,0.0001508,2]
[336446360,1724830250241,-150.112233,0.000151,2]
[336446362,1724830250252,-500.0,0.00015342,2]
[336446364,1724830250262,-500.0,0.00015342,2]
[336446366,1724830250272,-716.76,0.00015342,2]
[336446368,1724830250282,-500.0,0.00015342,2]
[336446370,1724830250292,-2761.92,0.00015342,2]
[336446372,1724830250303,-1062.53,0.00015342,2]
[336446374,1724830250313,-876.1,0.00015342,2]
[336446375,1724830250323,-1073.76,0.00015342,2]
[336446377,1724830250334,-500.0,0.00015342,2]
[336446379,1724830250343,-500.0,0.00015342,2]
[336446381,1724830250353,-876.6,0.00015342,2]
[336446383,1724830250362,-500.0,0.00015616,2]
[336446385,1724830250371,-500.0,0.00015616,2]
[336446387,1724830250382,-716.76,0.00015616,2]
[336446389,1724830250392,-500.0,0.00015616,2]
[336446392,1724830250402,-2761.92,0.00015616,2]
[336446394,1724830250413,-1062.53,0.00015616,2]
[336446396,1724830250423,-876.1,0.00015616,2]
[336446398,1724830250432,-1073.76,0.00015616,2]
[336446400,1724830250442,-242.71,0.00015616,2]
[336446402,1724830250452,-500.0,0.00015616,2]
[336446404,1724830250462,-876.6,0.00015616,2]
[336446406,1724830250471,-150.112233,0.000158,2]
[336446408,1724830250481,-500.0,0.0001589,2]
[336446410,1724830250493,-500.0,0.0001589,2]
[336446412,1724830250503,-716.76,0.0001589,2]
[336446414,1724830250512,-358.67456373,0.0001589,2]
[336446417,1724830250524,-2761.92,0.0001589,2]
[336446419,1724830250534,-1062.53,0.0001589,2]
[336446421,1724830250544,-876.1,0.0001589,2]
[336446423,1724830250555,-1073.76,0.0001589,2]
[336446425,1724830250566,-500.0,0.0001589,2]
[336446441,1724830250705,-876.6,0.0001589,2]
[336446443,1724830250716,-214.7,0.00016164,2]
[336446445,1724830250725,-500.0,0.00016164,2]
[336446447,1724830250735,-716.76,0.00016164,2]
[336446449,1724830250744,-2761.92,0.00016164,2]
[336446451,1724830250755,-1062.53,0.00016164,2]
[336446454,1724830250765,-876.1,0.00016164,2]
[336446456,1724830250775,-1073.76,0.00016164,2]
[336446458,1724830250785,-500.0,0.00016164,2]
[336446460,1724830250794,-876.6,0.00016164,2]